[Event "45th FIDE Olympiad 2024"]
[Site "Budapest"]
[Date "2024.09.19"]
[Round "8.238"]
[White "Rocha, Maximiliano"]
[Black "Yeung, Jason"]
[Result "1-0"]
[WhiteElo "2156"]
[BlackElo "1993"]
[PlyCount "57"]
[EventDate "2024.09.05"]
[EventType "team-tourn"]
[EventCountry "HUN"]
[WhiteTeam "Nicaragua"]
[BlackTeam "Suriname"]
[WhiteTeamCountry "NCA"]
[TimeControl "40/5400+30:1800+30"]

1. e4 c5 2. Nf3 e6 3. c3 d5 4. e5 d4 5. cxd4 cxd4 6. Bb5+ Bd7 7. Nxd4 Qg5 8. O-O Qxe5 9. Bxd7+ Nxd7 10. Nf3 Qc7 11. Nc3 Ngf6 12. d4 Bb4 13. d5 Bxc3 14. dxe6 fxe6 15. bxc3 O-O 16. Re1 Qxc3 17. Rb1 Nc5 18. Be3 b6 19. Qe2 Rac8 20. Red1 Nce4 21. h3 Qc2 22. Qa6 Nc3 23. Rbc1 Qe2 24. Rd3 Nfd5 25. Bd4 Nb4 26. Qb7 e5 27. Bxe5 Qxe5 28. Nxe5 Nxd3 29. Rxc3 1-0

[Event "45th FIDE Olympiad 2024"]
[Site "Budapest"]
[Date "2024.09.19"]
[Round "8.239"]
[White "Kalidjo, Imaan"]
[Black "Sanchez, Steven"]
[Result "0-1"]
[WhiteElo "1934"]
[BlackElo "2072"]
[PlyCount "68"]
[EventDate "2024.09.05"]
[EventType "team-tourn"]
[EventCountry "HUN"]
[WhiteTeam "Suriname"]
[BlackTeam "Nicaragua"]
[BlackTeamCountry "NCA"]
[TimeControl "40/5400+30:1800+30"]

1. c4 c5 2. g3 g6 3. Bg2 Bg7 4. Nc3 Nc6 5. d3 d6 6. Qd2 e6 7. b3 Nge7 8. Bb2 Rb8 9. f4 O-O 10. Nf3 a6 11. O-O b5 12. Ne4 Nf5 13. g4 Nfd4 14. g5 bxc4 15. e3 d5 16. Nf6+ Bxf6 17. gxf6 Nxf3+ 18. Bxf3 cxb3 19. Be5 bxa2 20. Rxa2 Rb4 21. Qf2 Kh8 22. Qg3 Rg8 23. Qg5 Qf8 24. Rg2 a5 25. Be2 h6 26. Rf3 Nxe5 27. Qxe5 a4 28. Rh3 Kh7 29. Qg5 e5 30. Rh4 a3 31. Qxe5 a2 32. Bf1 g5 33. Rxg5 Rxg5+ 34. Qxg5 a1=Q {0-} 0-1

[Event "45th FIDE Olympiad 2024"]
[Site "Budapest"]
[Date "2024.09.19"]
[Round "8.240"]
[White "Ortiz, Marcos"]
[Black "Chashawa, Shaief"]
[Result "1-0"]
[WhiteElo "2191"]
[BlackElo "1825"]
[PlyCount "81"]
[EventDate "2024.09.05"]
[EventType "team-tourn"]
[EventCountry "HUN"]
[WhiteTeam "Nicaragua"]
[BlackTeam "Suriname"]
[WhiteTeamCountry "NCA"]
[TimeControl "40/5400+30:1800+30"]

1. e4 e5 2. d4 exd4 3. Nf3 d5 4. Qxd4 Nc6 5. Bb5 Bd7 6. Qxd5 Nf6 7. Qd3 Qe7 8. Nc3 O-O-O 9. Qe2 Ne5 10. Bxd7+ Rxd7 11. O-O h6 12. Bf4 Nxf3+ 13. Qxf3 g5 14. Bg3 Qe6 15. Rfd1 Bg7 16. Qe3 b6 17. Qe2 Kb7 18. Rd3 Re8 19. Rad1 Rxd3 20. cxd3 Nd7 21. Qc2 c6 22. d4 f5 23. f3 f4 24. Bf2 Nf6 25. d5 cxd5 26. exd5 Qf7 27. a4 Rc8 28. a5 Nd7 29. axb6 axb6 30. Qb3 Bxc3 31. bxc3 Qf6 32. Qb5 Rc7 33. c4 Qc3 34. d6 Rc6 35. h4 Qa5 36. Qb1 Qe5 37. c5 gxh4 38. Qh7 Qe8 39. Re1 Qd8 40. Re7 Kc8 41. Qe4 1-0

[Event "45th FIDE Olympiad 2024"]
[Site "Budapest"]
[Date "2024.09.19"]
[Round "8.241"]
[White "Juarez Flores, Carlos A."]
[Black "Al Maashani, Amer"]
[Result "1/2-1/2"]
[WhiteElo "2308"]
[BlackElo "1979"]
[PlyCount "99"]
[EventDate "2024.09.05"]
[EventType "team-tourn"]
[EventCountry "HUN"]
[WhiteTeam "Guatemala"]
[BlackTeam "Oman"]
[WhiteTeamCountry "GUA"]
[BlackTeamCountry "OMN"]
[TimeControl "40/5400+30:1800+30"]

1. e4 c5 2. Nf3 Nc6 3. d4 cxd4 4. Nxd4 Nf6 5. Nc3 e5 6. Ndb5 d6 7. Bg5 a6 8. Na3 b5 9. Nd5 Be7 10. Bxf6 Bxf6 11. c3 Bg5 12. Nc2 Rb8 13. g3 O-O 14. Bg2 Ne7 15. O-O Nxd5 16. exd5 a5 17. Qd3 Qb6 18. Kh1 f5 19. f4 e4 20. Qd2 Bf6 21. a3 Ba6 22. Rfe1 h5 23. Rad1 b4 24. axb4 Bd3 25. Ne3 g6 26. Bf1 Bxf1 27. Rxf1 axb4 28. Rc1 bxc3 29. bxc3 Qc5 30. h3 Rb3 31. g4 Rxc3 32. Rxc3 Bxc3 33. Qe2 Bd4 34. Nc2 hxg4 35. hxg4 Kf7 36. Rb1 Rh8+ 37. Kg2 Bf6 38. Ne3 fxg4 39. Rb7+ Be7 40. Qxg4 Re8 41. Qe6+ Kf8 42. Qxe4 Qc8 43. Ra7 Qb8 44. Rd7 Qb2+ 45. Qc2 Qd4 46. Qxg6 Qxe3 47. Qh6+ Kf7 48. Qh5+ Kf8 49. Qh6+ Kf7 50. Qh5+ 1/2-1/2

[Event "45th FIDE Olympiad 2024"]
[Site "Budapest"]
[Date "2024.09.19"]
[Round "8.242"]
[White "Al Maashani, Abdullah"]
[Black "Giron Chavez, David Emanuel"]
[Result "1/2-1/2"]
[WhiteElo "1893"]
[BlackElo "2065"]
[PlyCount "98"]
[EventDate "2024.09.05"]
[EventType "team-tourn"]
[EventCountry "HUN"]
[WhiteTeam "Oman"]
[BlackTeam "Guatemala"]
[WhiteTeamCountry "OMN"]
[BlackTeamCountry "GUA"]
[TimeControl "40/5400+30:1800+30"]

1. e4 c5 2. Nf3 d6 3. d4 cxd4 4. Nxd4 Nf6 5. Nc3 a6 6. f3 e6 7. Be3 Nbd7 8. Qd2 b5 9. O-O-O Qc7 10. g4 h6 11. h4 Ne5 12. Qg2 b4 13. Nb1 Bb7 14. g5 hxg5 15. hxg5 Rxh1 16. Qxh1 Nfd7 17. Nd2 d5 18. exd5 Bxd5 19. Ne4 Qa5 20. Nb3 Qxa2 21. Rxd5 exd5 22. Ned2 Rc8 23. f4 Nc4 24. Nxc4 dxc4 25. Qe4+ Kd8 26. Bxc4 Qa4 27. Kb1 Qc6 28. Bd5 Qb5 29. Bxf7 Nc5 30. Bxc5 Rxc5 31. Nxc5 Qxc5 32. Qe8+ Kc7 33. Be6 Qd6 34. Qc8+ Kb6 35. f5 Be7 36. Bc4 Bxg5 37. Qxa6+ Kc5 38. Bd3 Qxa6 39. Bxa6 Bf6 40. Ka2 Be5 41. Kb3 Bf6 42. Bd3 Be5 43. c3 bxc3 44. bxc3 Bf6 45. Be4 Be5 46. Bb1 Bf6 47. Kc2 Be5 48. Kd3 Bf6 49. Ba2 Be5 1/2-1/2

[Event "45th FIDE Olympiad 2024"]
[Site "Budapest"]
[Date "2024.09.19"]
[Round "8.243"]
[White "Aragon Trujillo, Ricardo M."]
[Black "Al Busaidi, Hamood"]
[Result "1-0"]
[WhiteElo "2057"]
[BlackElo "1881"]
[PlyCount "113"]
[EventDate "2024.09.05"]
[EventType "team-tourn"]
[EventCountry "HUN"]
[WhiteTeam "Guatemala"]
[BlackTeam "Oman"]
[WhiteTeamCountry "GUA"]
[BlackTeamCountry "OMN"]
[TimeControl "40/5400+30:1800+30"]

1. e4 c5 2. Nf3 d6 3. c3 Nf6 4. h3 Nc6 5. Bd3 e5 6. Bc2 Be7 7. d4 O-O 8. O-O Qc7 9. d5 Nb8 10. a4 b6 11. Na3 a6 12. b4 cxb4 13. cxb4 Ne8 14. Be3 g6 15. Bb3 Qb7 16. Rc1 b5 17. a5 Nd7 18. Nd2 f5 19. f4 exf4 20. Bxf4 Qa7+ 21. Kh1 g5 22. Bh2 f4 23. Bg1 Qb7 24. Nf3 g4 25. hxg4 Ndf6 26. e5 Ne4 27. Bh2 Bxg4 28. Qd4 Bf5 29. Bxf4 Bg6 30. Bh2 Ng7 31. Nd2 Ng5 32. exd6 Rxf1+ 33. Rxf1 Bf8 34. Bc2 Rc8 35. Bxg6 hxg6 36. Nab1 Nf7 37. Ne4 Rc4 38. Nf6+ Kh8 39. Qd2 Rh4 40. Rf4 Rxh2+ 41. Kxh2 Bxd6 42. g3 Bxf4 43. Qxf4 Nf5 44. Nd2 Qe7 45. Nde4 Kg7 46. Qb8 N7h6 47. d6 Qe6 48. Ne8+ Kh8 49. Nc7+ Qg8 50. Qxg8+ Kxg8 51. d7 Nf7 52. Ne6 Ne7 53. Nf6+ Kh8 54. d8=Q+ Nxd8 55. Nxd8 Kg7 56. Nd7 Nd5 57. Nc6 1-0

[Event "45th FIDE Olympiad 2024"]
[Site "Budapest"]
[Date "2024.09.19"]
[Round "8.244"]
[White "Al Mashikhi, Mohammed Alyan"]
[Black "Garcia Fuentes, Sergio Miguel"]
[Result "0-1"]
[WhiteElo "1959"]
[BlackElo "2114"]
[PlyCount "90"]
[EventDate "2024.09.05"]
[EventType "team-tourn"]
[EventCountry "HUN"]
[WhiteTeam "Oman"]
[BlackTeam "Guatemala"]
[WhiteTeamCountry "OMN"]
[BlackTeamCountry "GUA"]
[TimeControl "40/5400+30:1800+30"]

1. e4 c5 2. Nf3 e6 3. d4 cxd4 4. Nxd4 Nc6 5. Nc3 a6 6. Be3 Nf6 7. f3 Bb4 8. Bc4 d5 9. exd5 Nxd5 10. Bxd5 Qxd5 11. O-O Bxc3 12. bxc3 O-O 13. Nxc6 Qxc6 14. Qd4 b5 15. Rfd1 Bb7 16. Qg4 e5 17. Rd3 Bc8 18. Qg3 Bf5 19. Rd2 Qxc3 20. Re1 Rfe8 21. Qg5 Bg6 22. h4 f6 23. Qg3 Rad8 24. Rde2 Qc4 25. Qf2 h5 26. a3 Rd5 27. Rb1 Rc8 28. Rb4 Rd1+ 29. Kh2 Qd5 30. f4 Rc4 31. f5 Bf7 32. Qg3 Kh7 33. Bf2 Rxb4 34. axb4 Qc4 35. Qf3 Qd5 36. Re4 Rd2 37. Bc5 Rxc2 38. Bf8 Kg8 39. Be7 Qd7 40. Bc5 Qd2 41. Re3 Bd5 42. Qg3 Bxg2 43. Rd3 Qxd3 44. Qxd3 Be4+ 45. Qxc2 Bxc2 {0-} 0-1

[Event "45th FIDE Olympiad 2024"]
[Site "Budapest"]
[Date "2024.09.19"]
[Round "8.245"]
[White "Ayyad, Husain"]
[Black "Pace, Colin"]
[Result "1-0"]
[WhiteElo "2129"]
[BlackElo "2186"]
[PlyCount "89"]
[EventDate "2024.09.05"]
[EventType "team-tourn"]
[EventCountry "HUN"]
[WhiteTeam "Bahrain"]
[BlackTeam "Malta"]
[WhiteTeamCountry "BHN"]
[BlackTeamCountry "MLT"]
[TimeControl "40/5400+30:1800+30"]

1. e4 c5 2. Nf3 Nc6 3. d4 cxd4 4. Nxd4 Nf6 5. Nc3 e6 6. Ndb5 Bc5 7. Bf4 O-O 8. Bd6 Qb6 9. Bxc5 Qxc5 10. Qd6 Qb6 11. Qc7 Qc5 12. Qd6 Qb6 13. Qd2 a6 14. Nd6 Qxb2 15. Rb1 Qa3 16. Be2 b5 17. O-O b4 18. Nd1 Qxa2 19. Ne3 Qa5 20. f4 Qc5 21. Rfd1 a5 22. Kh1 Ne8 23. Nxc8 Rxc8 24. e5 d5 25. Bd3 f5 26. exf6 Nxf6 27. Re1 Qd4 28. g3 Kh8 29. Qg2 Rce8 30. Rbd1 Qc5 31. Qh3 e5 32. Bg6 h6 33. Bxe8 Rxe8 34. fxe5 Rxe5 35. Ng4 Nxg4 36. Qxg4 d4 37. Qc8+ Kh7 38. Rxe5 Qxe5 39. Qxc6 Qe2 40. Ra1 b3 41. cxb3 d3 42. Qg2 Qe6 43. Rd1 g6 44. Qf3 d2 45. Qf2 1-0

[Event "45th FIDE Olympiad 2024"]
[Site "Budapest"]
[Date "2024.09.19"]
[Round "8.246"]
[White "Darmanin, Jake"]
[Black "Ayyad, Maher"]
[Result "1-0"]
[WhiteElo "2119"]
[BlackElo "1980"]
[PlyCount "101"]
[EventDate "2024.09.05"]
[EventType "team-tourn"]
[EventCountry "HUN"]
[WhiteTeam "Malta"]
[BlackTeam "Bahrain"]
[WhiteTeamCountry "MLT"]
[BlackTeamCountry "BHN"]
[TimeControl "40/5400+30:1800+30"]

1. e4 c5 2. c3 d5 3. exd5 Qxd5 4. Na3 Nc6 5. Nf3 Bg4 6. Be2 Nf6 7. O-O e6 8. h3 Bh5 9. d4 cxd4 10. Nb5 Qd8 11. Nfxd4 Nxd4 12. Nxd4 Bxe2 13. Qxe2 Be7 14. Rd1 Qa5 15. Qf3 Qd5 16. Qxd5 Nxd5 17. Nf5 g6 18. Nh6 Kf8 19. c4 Nb6 20. b3 Bf6 21. Rb1 Bg7 22. Rd3 Ke7 23. Be3 Bxh6 24. Bxh6 Rhd8 25. Rbd1 Rxd3 26. Rxd3 Nd7 27. Be3 b6 28. Kf1 f6 29. Ke2 Rc8 30. Bc1 Nc5 31. Ba3 Rd8 32. Re3 Kf7 33. b4 Nb7 34. Bb2 Rc8 35. Rc3 a5 36. a3 axb4 37. axb4 Nd6 38. Kd3 Rd8 39. Ke2 Rc8 40. Kd3 Rd8 41. Kc2 Ne4 42. Rd3 Nd6 43. c5 bxc5 44. bxc5 Nb7 45. c6 Rxd3 46. Kxd3 Nd6 47. Ba3 Nb5 48. Bc5 Nc7 49. Kc4 e5 50. Bd6 Ne8 51. Kd5 1-0

[Event "45th FIDE Olympiad 2024"]
[Site "Budapest"]
[Date "2024.09.19"]
[Round "8.247"]
[White "Monther, Alfardan"]
[Black "Novak, Attila Robert"]
[Result "0-1"]
[WhiteElo "1834"]
[BlackElo "2135"]
[PlyCount "74"]
[EventDate "2024.09.05"]
[EventType "team-tourn"]
[EventCountry "HUN"]
[WhiteTeam "Bahrain"]
[BlackTeam "Malta"]
[WhiteTeamCountry "BHN"]
[BlackTeamCountry "MLT"]
[TimeControl "40/5400+30:1800+30"]

1. e4 e6 2. d4 d5 3. Nd2 h6 4. Ngf3 Nf6 5. Bd3 c5 6. e5 Nfd7 7. c3 Nc6 8. O-O g5 9. g4 Bg7 10. Re1 Qb6 11. Qb3 c4 12. Qxb6 axb6 13. Bc2 b5 14. Nf1 b4 15. Bd2 Bf8 16. Ng3 b5 17. Nh5 Be7 18. Ng7+ Kd8 19. Kg2 Rg8 20. Nh5 Bb7 21. Kg3 Kc7 22. h4 bxc3 23. bxc3 b4 24. Reb1 bxc3 25. Bxc3 gxh4+ 26. Nxh4 Ra3 27. Bb3 cxb3 28. axb3 Rxa1 29. Rxa1 Ra8 30. Rc1 Ra3 31. f3 Rxb3 32. Ng7 Kd8 33. Ng2 Bf8 34. Nh5 Ba3 35. Rc2 Nb4 36. Bxb4 Rxb4 37. Ra2 Bb2 {0-} 0-1

[Event "45th FIDE Olympiad 2024"]
[Site "Budapest"]
[Date "2024.09.19"]
[Round "8.248"]
[White "Zerafa, Patrick"]
[Black "Mosa, Hamad"]
[Result "1-0"]
[WhiteElo "1986"]
[BlackElo "1721"]
[PlyCount "97"]
[EventDate "2024.09.05"]
[EventType "team-tourn"]
[EventCountry "HUN"]
[WhiteTeam "Malta"]
[BlackTeam "Bahrain"]
[WhiteTeamCountry "MLT"]
[BlackTeamCountry "BHN"]
[TimeControl "40/5400+30:1800+30"]

1. d4 e6 2. Nf3 d5 3. g3 Nf6 4. Bg2 Bd6 5. O-O O-O 6. b3 c6 7. Bb2 Nbd7 8. c4 Ne4 9. Nc3 Ndf6 10. Nd2 Nxd2 11. Qxd2 Qe7 12. e4 dxe4 13. Nxe4 Nxe4 14. Bxe4 f5 15. Bc2 f4 16. Qd3 g6 17. Rfe1 Qf7 18. Re2 Bd7 19. Qc3 Be7 20. Rae1 Bf6 21. Qb4 b6 22. Qd2 Bg7 23. Re4 Bh6 24. g4 e5 25. f3 Bxg4 26. fxg4 f3 27. Qf2 Bg5 28. Rf1 Qf6 29. dxe5 Qe7 30. Bc1 Bh4 31. Qe3 f2+ 32. Kg2 g5 33. e6 Rf6 34. Bb2 Rg6 35. Qd4 Kf8 36. Qh8+ Rg8 37. Qf6+ Ke8 38. Qxe7+ Kxe7 39. Re2 Rgf8 40. Bxh7 Rf4 41. Bf5 Rd8 42. Be5 Rdd4 43. Bxd4 Rxd4 44. Rfxf2 Bxf2 45. Kxf2 c5 46. Ke1 a6 47. Rd2 Kd6 48. Rxd4+ cxd4 49. Kd2 1-0

[Event "45th FIDE Olympiad 2024"]
[Site "Budapest"]
[Date "2024.09.19"]
[Round "8.249"]
[White "Ortega Amarelle, Mariano"]
[Black "Hasford, John Kojo"]
[Result "1-0"]
[WhiteElo "2453"]
[BlackElo "1956"]
[PlyCount "55"]
[EventDate "2024.09.05"]
[EventType "team-tourn"]
[EventCountry "HUN"]
[WhiteTeam "Cape Verde"]
[BlackTeam "Ghana"]
[BlackTeamCountry "GHA"]
[TimeControl "40/5400+30:1800+30"]

1. e4 d6 2. d4 Nf6 3. Nc3 c6 4. f4 g6 5. Nf3 Bg7 6. Bd3 O-O 7. O-O Na6 8. h3 Nb4 9. Be2 d5 10. e5 Ne8 11. a3 Na6 12. Be3 b5 13. Na2 Nac7 14. Nb4 Bd7 15. Nd3 Ne6 16. f5 N6c7 17. e6 fxe6 18. fxg6 hxg6 19. Nde5 Nd6 20. Nxg6 Rf6 21. Nge5 Be8 22. Bg5 Rf8 23. Qe1 Ne4 24. Qh4 Nxg5 25. Nxg5 Rf6 26. Qh7+ Kf8 27. Bh5 Bxh5 28. Qxh5 1-0

[Event "45th FIDE Olympiad 2024"]
[Site "Budapest"]
[Date "2024.09.19"]
[Round "8.250"]
[White "Anquandah, Francis Eric"]
[Black "Alho, Diogo"]
[Result "0-1"]
[WhiteElo "1941"]
[BlackElo "2192"]
[PlyCount "84"]
[EventDate "2024.09.05"]
[EventType "team-tourn"]
[EventCountry "HUN"]
[WhiteTeam "Ghana"]
[BlackTeam "Cape Verde"]
[WhiteTeamCountry "GHA"]
[TimeControl "40/5400+30:1800+30"]

1. e4 c5 2. Nf3 d6 3. d4 cxd4 4. Bb5+ Nd7 5. Nxd4 Ngf6 6. Nc3 a6 7. Ba4 e6 8. O-O Be7 9. Be3 O-O 10. Bb3 Ne5 11. h3 Qc7 12. Qe2 b5 13. a3 Bd7 14. Rad1 Rfc8 15. f4 Nc4 16. Bxc4 Qxc4 17. e5 Qxe2 18. Ndxe2 Ne8 19. exd6 Nxd6 20. b4 Be8 21. Bc5 Rxc5 22. bxc5 Nc4 23. Rd3 Bxc5+ 24. Kh2 Nxa3 25. Ne4 Be7 26. c3 Bc6 27. Nd2 g6 28. Nd4 Bb7 29. Re1 Rd8 30. Ree3 Bd5 31. f5 Bg5 32. Re1 gxf5 33. Rg3 h6 34. Ra1 Nc4 35. Nxc4 bxc4 36. h4 f4 37. Rh3 Bf6 38. Rxa6 Rb8 39. Ra2 e5 40. Ne2 Rb1 41. Rd2 Be4 42. g4 Rh1# {0-} 0-1

[Event "45th FIDE Olympiad 2024"]
[Site "Budapest"]
[Date "2024.09.19"]
[Round "8.251"]
[White "Mirulla, David"]
[Black "Anhwere, Bernard"]
[Result "0-1"]
[WhiteElo "1904"]
[BlackElo "1893"]
[PlyCount "100"]
[EventDate "2024.09.05"]
[EventType "team-tourn"]
[EventCountry "HUN"]
[WhiteTeam "Cape Verde"]
[BlackTeam "Ghana"]
[BlackTeamCountry "GHA"]
[TimeControl "40/5400+30:1800+30"]

1. e4 c5 2. Nf3 d6 3. d4 cxd4 4. Nxd4 Nf6 5. Nc3 a6 6. h3 e6 7. g4 Nc6 8. g5 Nd7 9. h4 Qb6 10. Nb3 Qc7 11. h5 b5 12. Bf4 b4 13. Nb1 Bb7 14. Rh3 Nce5 15. N1d2 Be7 16. c3 a5 17. Nd4 d5 18. Be3 bxc3 19. bxc3 dxe4 20. Nb5 Qc8 21. Qa4 Nf3+ 22. Nxf3 exf3 23. Qd4 e5 24. Qa4 O-O 25. Bc4 Nb6 26. Bxb6 Qxh3 27. O-O-O Bxg5+ 28. Kb2 Bc6 29. Rd6 Bd7 30. Qd1 Bxb5 31. Bxb5 Rab8 32. c4 e4 33. Qd5 Be7 34. Rc6 Qh4 35. Kb3 Rxb6 36. Rxb6 Qxf2 37. Rb7 Bf6 38. Be8 Qb2+ 39. Ka4 Qxa2+ 40. Kb5 Qb2+ 41. Ka6 Qe5 42. Bxf7+ Kh8 43. c5 e3 44. c6 Qxd5 45. Bxd5 e2 46. Bxf3 e1=Q 47. c7 Qf1+ 48. Ka7 Qxf3 49. Rb8 Bd4+ 50. Ka6 Qc6+ {0-} 0-1

[Event "45th FIDE Olympiad 2024"]
[Site "Budapest"]
[Date "2024.09.19"]
[Round "8.252"]
[White "Frempong-Smart, Daniel"]
[Black "Vaz, Jose Carlos"]
[Result "0-1"]
[WhiteElo "1863"]
[BlackElo "1909"]
[PlyCount "56"]
[EventDate "2024.09.05"]
[EventType "team-tourn"]
[EventCountry "HUN"]
[WhiteTeam "Ghana"]
[BlackTeam "Cape Verde"]
[WhiteTeamCountry "GHA"]
[TimeControl "40/5400+30:1800+30"]

1. d4 d5 2. Nf3 Nf6 3. g3 e6 4. Bg2 c5 5. c4 dxc4 6. Qa4+ Nc6 7. O-O Bd7 8. Qxc4 cxd4 9. Nxd4 Rc8 10. Nxc6 Bxc6 11. Bxc6+ Rxc6 12. Qa4 Bc5 13. Nc3 O-O 14. Bg5 h6 15. Bxf6 Qxf6 16. e3 Bb6 17. Rad1 Qf3 18. Rd7 Rfc8 19. Qd1 Qf5 20. Rxb7 h5 21. Rd7 h4 22. Qd3 Qh3 23. Na4 hxg3 24. hxg3 Bc7 25. e4 e5 26. Qd5 Rf6 27. Rxc7 Rf8 28. Rxa7 Rh6 {0-} 0-1

[Event "45th FIDE Olympiad 2024"]
[Site "Budapest"]
[Date "2024.09.19"]
[Round "8.253"]
[White "Michaelides, Konstantinos"]
[Black "Hamperl, Fred"]
[Result "1-0"]
[WhiteElo "2297"]
[BlackElo "1977"]
[PlyCount "81"]
[EventDate "2024.09.05"]
[EventType "team-tourn"]
[EventCountry "HUN"]
[WhiteTeam "Cyprus"]
[BlackTeam "Guernsey"]
[WhiteTeamCountry "CYP"]
[TimeControl "40/5400+30:1800+30"]

1. d4 d5 2. c4 e6 3. Nf3 Nf6 4. g3 Bb4+ 5. Bd2 Be7 6. Bg2 O-O 7. O-O Nbd7 8. c5 c6 9. Nc3 Ne4 10. Qc2 Nxd2 11. Nxd2 e5 12. dxe5 Nxc5 13. Rad1 Qc7 14. f4 f6 15. exf6 Bxf6 16. Nb3 Nxb3 17. Nxd5 Qf7 18. Nxf6+ gxf6 19. axb3 Be6 20. Rd3 Qc7 21. b4 Rad8 22. Rfd1 Rxd3 23. Qxd3 Qb6+ 24. Qd4 Qxd4+ 25. Rxd4 Kf7 26. Kf2 Rc8 27. Rd2 Ke7 28. Be4 h6 29. Ke3 Rc7 30. f5 Bf7 31. g4 Bg8 32. Kf4 Rd7 33. Rxd7+ Kxd7 34. h4 Kd6 35. Bf3 b6 36. g5 fxg5+ 37. hxg5 hxg5+ 38. Kxg5 c5 39. bxc5+ bxc5 40. Kf6 a5 41. e4 1-0

[Event "45th FIDE Olympiad 2024"]
[Site "Budapest"]
[Date "2024.09.19"]
[Round "8.254"]
[White "Brookfield, Toby"]
[Black "Isaakidis, Alexandros"]
[Result "0-1"]
[WhiteElo "1872"]
[BlackElo "2155"]
[PlyCount "52"]
[EventDate "2024.09.05"]
[EventType "team-tourn"]
[EventCountry "HUN"]
[WhiteTeam "Guernsey"]
[BlackTeam "Cyprus"]
[BlackTeamCountry "CYP"]
[TimeControl "40/5400+30:1800+30"]

1. e4 c6 2. Nf3 d5 3. Nc3 dxe4 4. Nxe4 Nf6 5. Nxf6+ exf6 6. d4 Bd6 7. Bd3 O-O 8. O-O Re8 9. c4 Bg4 10. h3 Bh5 11. g4 Bg6 12. Nh4 Bxd3 13. Qxd3 g6 14. Nf3 Nd7 15. Kg2 Nf8 16. Be3 Qd7 17. Rad1 f5 18. gxf5 gxf5 19. Nh4 Re4 20. Nf3 Re6 21. Nh4 Re4 22. Nf3 Ng6 23. Rg1 Rae8 24. Ng5 R4e7 25. d5 Bf4 26. Bc1 Bxc1 {0-} 0-1

[Event "45th FIDE Olympiad 2024"]
[Site "Budapest"]
[Date "2024.09.19"]
[Round "8.255"]
[White "Antoniou, Rafail"]
[Black "Owen, Garth I"]
[Result "1/2-1/2"]
[WhiteElo "2007"]
[BlackElo "1810"]
[PlyCount "73"]
[EventDate "2024.09.05"]
[EventType "team-tourn"]
[EventCountry "HUN"]
[WhiteTeam "Cyprus"]
[BlackTeam "Guernsey"]
[WhiteTeamCountry "CYP"]
[TimeControl "40/5400+30:1800+30"]

1. c4 Nf6 2. Nf3 g6 3. Nc3 Bg7 4. e4 d6 5. d4 O-O 6. Be2 e5 7. O-O Nc6 8. Be3 Ng4 9. Bg5 f6 10. Bc1 Nxd4 11. Nxd4 exd4 12. Qxd4 f5 13. Qd5+ Kh8 14. Bxg4 fxg4 15. Be3 c6 16. Qd3 Be6 17. Bd4 Qe7 18. b3 Rad8 19. Rad1 h5 20. Bxg7+ Kxg7 21. Qe3 h4 22. e5 d5 23. cxd5 cxd5 24. Ne2 h3 25. g3 Bf5 26. Nd4 Be4 27. e6 Rc8 28. Rc1 Kh7 29. Rfd1 Qf6 30. Re1 Kg7 31. Qd2 Rfe8 32. Qe3 Rf8 33. Rcd1 Rfe8 34. Rd2 Kh7 35. Rdd1 Re7 36. Qe2 Qg5 37. Qb2 1/2-1/2